bitfinex/quotes_SOLUSD_20251025
["timestamp","ask_amount","ask_price","bid_price","bid_amount"]
[1761405396023,3.49819217,192.07,192.04,43.51106258]
[1761405396192,0.7,192.08,192.04,43.51106258]
[1761405396395,3.49828843,192.07,192.04,43.51106258]
[1761405396596,0.7,192.08,192.04,43.51106258]
[1761405396816,3.49828843,192.07,192.04,41.54713977]
[1761405397120,3.49826662,192.06,192.04,37.96392281]
[1761405397305,0.7,192.07,192.04,37.96392281]
[1761405397508,3.49823059,192.06,192.04,37.96392281]
[1761405397707,0.7,192.07,192.04,37.96392281]
[1761405397916,3.49823245,192.06,192.04,37.96392281]
[1761405398121,0.7,192.07,192.04,37.96392281]
[1761405398425,3.49809786,192.06,192.04,37.96392281]
[1761405398604,0.7,192.07,192.04,37.96392281]
[1761405398804,3.49808504,192.06,192.04,37.96392281]
[1761405399125,0.7,192.07,192.04,37.96392281]
[1761405399299,3.49782443,192.06,192.04,37.96392281]
[1761405399498,0.7,192.07,192.04,37.96392281]
[1761405399810,3.49782484,192.06,192.04,37.96392281]
[1761405400016,0.7,192.07,192.04,37.96392281]
[1761405400508,5.20617699,192.08,192.04,37.96392281]
[1761405400710,3.49779161,192.07,192.05,1.96392281]
[1761405400908,0.7,192.08,192.06,35.98]
[1761405401124,3.49779264,192.07,192.06,35.98]
[1761405406234,3.49779264,192.07,192.06,37.94392281]
[1761405406429,5.20566382,192.1,192.06,37.94392281]
[1761405406614,3.49721714,192.09,192.07,2.30392281]
[1761405406820,0.7,192.11,192.08,37.94392281]
[1761405407034,3.49721823,192.1,192.08,37.94392281]
[1761405407233,3.49721823,192.09,192.08,37.94392281]
[1761405407408,3.49721823,192.09,192.08,35.98]
[1761405407612,3.49721823,192.09,192.08,37.94392281]
[1761405408215,0.9,192.12,192.08,43.4900869]
[1761405408432,3.49618897,192.11,192.09,1.96392281]
[1761405408632,3.49618897,192.1,192.09,1.96392281]
[1761405408832,3.49618897,192.1,192.09,37.94392281]
[1761405409411,3.49618897,192.1,192.09,43.48981588]
[1761405410829,3.49618897,192.1,192.09,43.14981588]
[1761405411729,3.49618897,192.1,192.09,46.98600485]
[1761405411918,3.49618897,192.1,192.09,46.64600485]
[1761405412256,3.49618897,192.1,192.09,43.14981588]
[1761405413529,3.49618897,192.1,192.09,41.18589307]
[1761405414131,3.49618897,192.1,192.09,43.14981588]
[1761405416646,4.20618897,192.1,192.09,37.94392281]
[1761405416845,3.49618897,192.1,192.09,37.94392281]
[1761405417716,3.49618897,192.1,192.09,43.14981588]
[1761405419149,4.20618897,192.1,192.07,7.36847212]
[1761405419441,0.7,192.09,192.08,35.98]
[1761405426656,0.7,192.09,192.07,5.20642145]
[1761405426832,0.7,192.09,192.08,35.98]
[1761405427648,11.51018684,192.12,192.08,35.98]
[1761405427833,4.19254599,192.11,192.08,35.98]
[1761405428037,3.49254599,192.1,192.08,35.98]
[1761405428359,0.7,192.1,192.08,35.98]
[1761405428532,0.7,192.11,192.08,35.98]
[1761405428834,3.49263148,192.1,192.08,35.98]
[1761405429032,0.7,192.11,192.08,35.98]
[1761405429233,3.4926321,192.1,192.08,35.98]
[1761405429451,0.7,192.11,192.08,35.98]
[1761405429650,3.49273288,192.1,192.08,35.98]
[1761405429842,0.7,192.11,192.08,35.98]
[1761405430043,3.49273737,192.1,192.08,35.98]
[1761405430235,0.7,192.11,192.08,35.98]
[1761405430432,3.49368717,192.1,192.08,42.78231188]
[1761405430636,0.2,192.12,192.08,42.78231188]
[1761405430837,3.4937302,192.11,192.08,42.78231188]
[1761405431039,3.4937302,192.1,192.08,42.78231188]
[1761405431233,0.2,192.12,192.08,42.78231188]
[1761405431446,3.49381144,192.11,192.08,42.78231188]
[1761405431654,3.49381144,192.1,192.08,42.78231188]
[1761405431841,0.2,192.12,192.08,42.78231188]
[1761405432055,3.49380382,192.11,192.08,42.78231188]
[1761405432254,3.49380382,192.1,192.08,42.78231188]
[1761405432567,0.9,192.12,192.08,42.78231188]
[1761405432741,3.49385387,192.11,192.08,42.78231188]
[1761405432949,3.49385387,192.1,192.08,42.78231188]
[1761405433155,0.9,192.12,192.08,42.78231188]
[1761405433471,3.49405249,192.11,192.08,42.78231188]
[1761405433642,3.49405249,192.1,192.08,42.78231188]
[1761405433969,0.7,192.11,192.08,41.18604066]
[1761405434150,3.4940356,192.1,192.08,41.18604066]
[1761405434350,0.7,192.11,192.08,41.18604066]
[1761405434558,4.19433361,192.1,192.08,41.18604066]
[1761405434860,0.7,192.1,192.08,41.18604066]
[1761405435064,0.9,192.12,192.08,41.18604066]
[1761405435261,3.49437546,192.11,192.08,41.52604066]
[1761405435561,3.49437546,192.1,192.08,41.18604066]
[1761405435735,0.7,192.11,192.08,41.18604066]
[1761405435939,3.49442019,192.1,192.08,41.18604066]
[1761405436140,0.7,192.11,192.08,41.18604066]
[1761405436340,3.49448211,192.1,192.08,41.18604066]
[1761405436556,0.7,192.11,192.08,41.18604066]
[1761405436764,3.49452952,192.1,192.08,41.18604066]
[1761405436943,0.7,192.11,192.08,41.18604066]
[1761405437264,3.49452952,192.1,192.08,41.18604066]
[1761405437462,0.7,192.11,192.08,41.18604066]
[1761405437653,3.49464911,192.1,192.08,41.18604066]
[1761405437855,0.7,192.11,192.08,41.18604066]
[1761405438047,3.49464911,192.1,192.08,41.18604066]
[1761405438268,0.7,192.11,192.08,42.44231188]
[1761405438444,3.49478841,192.1,192.08,42.44231188]
[1761405438639,0.2,192.12,192.09,5.20578344]
[1761405438844,3.49478786,192.11,192.1,35.98]
[1761405439973,4.19478786,192.11,192.1,35.98]
[1761405442244,3.49478786,192.11,192.1,41.18562207]
[1761405443064,4.21478786,192.11,192.1,41.18562207]
[1761405443276,4.21478786,192.11,192.1,35.98]
[1761405446480,3.49478786,192.11,192.1,42.44189329]
[1761405447579,3.49478786,192.11,192.1,41.18562207]
[1761405456062,4.21478786,192.11,192.1,35.98]
[1761405457257,3.49478786,192.11,192.1,35.98]
[1761405457752,4.21478786,192.11,192.1,35.98]
[1761405461593,3.49478786,192.11,192.1,35.98]
[1761405461793,4.21478786,192.11,192.1,35.98]
[1761405471113,4.21478786,192.11,192.03,13.01877319]
[1761405471290,5.44105908,192.1,192.04,35.96]
[1761405471490,1.25627122,192.08,192.02,10.87647521]
[1761405471684,1.94627122,192.09,192.03,35.96]
[1761405471904,4.18791768,192.08,192.03,42.42374668]
[1761405472104,0.69,192.08,192.03,42.42374668]
[1761405472311,0.69,192.07,192.03,42.42374668]
[1761405473915,0.69,192.07,192.03,41.16747546]
[1761405474084,0.69,192.07,192.03,42.42374668]
[1761405477917,0.69,192.07,192.05,1.25627122]
[1761405478219,0.69,192.07,192.06,35.96]
[1761405478398,0.69,192.09,192.06,37.21627122]
[1761405478599,0.69,192.09,192.07,1.25627122]
[1761405478819,0.69,192.09,192.08,35.96]
[1761405479115,4.18634223,192.09,192.08,35.96]
[1761405482932,0.69,192.09,192.08,35.96]
[1761405486422,4.18534801,192.09,192.08,35.96]
[1761405487525,3.49534801,192.09,192.08,35.96]
[1761405487832,3.49534801,192.09,192.08,41.16616409]
[1761405488224,3.49534801,192.09,192.08,43.12915516]
[1761405489125,0.67,192.1,192.08,43.12915516]
[1761405493320,0.67,192.1,192.08,41.16616409]
[1761405494236,3.49605643,192.09,192.08,41.16616409]
[1761405494440,4.16605643,192.09,192.08,41.16616409]
[1761405494736,4.16605643,192.09,192.08,35.96]
[1761405498336,4.16605643,192.09,192.08,41.16616409]
[1761405498721,3.49605643,192.09,192.08,41.16616409]
[1761405498927,0.67,192.1,192.08,43.12915516]
[1761405500540,0.67,192.1,192.08,41.16616409]
[1761405501844,0.72,192.11,192.08,41.16616409]
[1761405502029,3.4968509,192.1,192.08,43.12915516]
[1761405502238,0.72,192.11,192.08,43.12915516]
[1761405502431,3.49688759,192.1,192.08,43.12915516]
[1761405502759,0.72,192.11,192.08,43.12915516]
[1761405502916,3.49688759,192.1,192.08,43.12915516]
[1761405503114,0.72,192.11,192.08,43.12915516]
[1761405503315,3.49688759,192.1,192.08,43.12915516]
[1761405503544,0.72,192.11,192.08,43.12915516]
[1761405503738,3.49692405,192.1,192.08,43.12915516]
[1761405504079,0.72,192.11,192.08,43.12915516]
[1761405504261,3.49692381,192.1,192.08,43.12915516]
[1761405504428,0.72,192.11,192.08,43.12915516]
[1761405504626,3.49696275,192.1,192.08,43.12915516]
[1761405504836,0.72,192.11,192.08,43.12915516]
[1761405505144,3.49696275,192.1,192.08,43.12915516]
[1761405505348,0.72,192.11,192.08,43.12915516]
[1761405505561,3.49700343,192.1,192.08,43.12915516]
[1761405505721,0.72,192.1,192.08,43.12915516]
[1761405506238,0.72,192.11,192.08,43.12915516]
[1761405506416,3.49704455,192.1,192.08,43.12915516]
[1761405506616,0.72,192.1,192.08,43.12915516]
[1761405508384,0.92,192.12,192.09,1.96299107]
[1761405508663,3.49712144,192.11,192.1,37.92299107]
[1761405509560,4.21712144,192.11,192.1,37.92299107]
[1761405510054,3.49712144,192.11,192.1,37.92299107]
[1761405510285,4.21712144,192.11,192.1,37.92299107]
[1761405511573,4.21712144,192.11,192.1,35.96]
[1761405512174,3.49712144,192.11,192.1,35.96]
[1761405513070,4.21712144,192.11,192.1,35.96]
[1761405513270,3.49712144,192.11,192.1,35.96]
[1761405513970,4.21712144,192.11,192.1,35.96]
[1761405514763,3.49712144,192.11,192.1,35.96]
[1761405515273,4.21712144,192.11,192.1,35.96]
[1761405519860,4.21712144,192.11,192.08,5.20612487]
[1761405520177,4.21712144,192.11,192.04,13.35756695]
[1761405520178,4.21712144,192.1,192.09,35.96]
[1761405530403,9.42274351,192.1,192.09,35.96]
[1761405531672,9.42274351,192.1,192.07,35.96]
[1761405531877,4.16712144,192.09,192.07,35.96]
[1761405532089,3.49712144,192.08,192.07,35.96]
[1761405532294,4.16712144,192.08,192.07,35.96]
[1761405546180,5.42353659,192.08,192.03,10.02411762]
[1761405546387,1.97641515,192.07,192.04,35.96]
[1761405546582,0.72,192.06,192.04,35.96]
[1761405553804,1.25641515,192.09,192.04,41.16710346]
[1761405554004,0.72,192.08,192.04,42.76351861]
[1761405554212,0.72,192.08,192.05,1.25641515]
[1761405554416,0.72,192.08,192.06,35.96]
[1761405562102,0.67,192.1,192.06,42.76307107]
[1761405562309,4.17138454,192.09,192.07,1.25641515]
[1761405562513,0.67,192.09,192.08,35.96]
[1761405562696,3.50166997,192.09,192.08,35.96]
[1761405563097,4.17166997,192.09,192.08,35.96]
[1761405563818,4.17190274,192.09,192.08,35.96]
[1761405576002,4.17190274,192.09,192.03,10.36411762]
[1761405576333,4.17190274,192.08,192.04,35.94]
[1761405576633,3.50190274,192.07,192.04,35.94]
[1761405576834,0.67,192.07,192.04,35.94]
[1761405577017,0.67,192.06,192.04,35.94]
[1761405578218,0.67,192.06,192.04,37.19641515]
[1761405578422,0.67,192.06,192.04,42.40356231]
[1761405579535,0.67,192.08,192.04,42.40356231]
[1761405579916,0.67,192.08,192.04,42.74356231]
[1761405581534,0.67,192.09,192.05,1.59641515]
[1761405581733,3.502551,192.08,192.06,35.94]
[1761405581922,0.67,192.09,192.06,35.94]
[1761405582121,4.17246186,192.08,192.06,35.94]
[1761405582322,0.67,192.08,192.06,35.94]
[1761405582736,0.67,192.08,192.05,1.25641515]
[1761405582917,0.67,192.08,192.07,35.94]
[1761405583123,4.17246149,192.08,192.07,35.94]
[1761405585313,4.17246149,192.08,192.04,5.20714716]
[1761405585516,5.20589344,192.09,192.04,5.20714716]
[1761405585517,0.67,192.07,192.05,35.94]
[1761405593127,0.67,192.07,192.03,16.48798672]
[1761405593326,0.67,192.07,192.04,35.94]
[1761405597247,5.87643556,192.07,192.03,10.02411762]
[1761405597449,3.49941199,192.06,192.03,10.02411762]
[1761405597752,0.72,192.06,192.04,35.94]
[1761405597948,0.72,192.05,192.04,35.94]
[1761405601454,7.18339249,192.05,191.97,1.25641515]
[1761405601682,1.25641515,192.04,191.98,35.94]
[1761405601845,1.91641515,192.04,191.98,35.94]
[1761405602046,0.66,192.03,191.98,35.94]
[1761405602445,0.66,192.03,191.98,51.57192038]
[1761405602647,0.66,192.03,191.98,41.14875839]
[1761405602841,0.66,192.03,191.99,6.46339249]
[1761405603047,0.66,192.04,192.0,1.25641515]
[1761405603248,0.66,192.04,192.01,35.94]
[1761405603561,0.66,192.04,192.01,37.19641515]
[1761405604957,0.66,192.04,192.01,37.90400175]
[1761405605765,0.66,192.05,192.02,1.96400175]
[1761405606055,5.86697996,192.07,192.04,1.96400175]
[1761405606373,0.66,192.07,192.05,35.94]
[1761405607356,0.66,192.07,192.05,37.90400175]
[1761405607561,0.66,192.09,192.05,36.28]
[1761405607863,3.48866578,192.08,192.05,35.94]
[1761405608042,0.66,192.09,192.05,35.94]
[1761405608241,4.14871704,192.08,192.05,35.94]
[1761405608442,0.66,192.08,192.05,35.94]
[1761405608643,0.66,192.07,192.05,35.94]
[1761405609839,0.66,192.09,192.05,37.90400175]
[1761405610146,3.48852348,192.08,192.05,37.90400175]
[1761405610348,0.66,192.09,192.05,37.90400175]
[1761405610544,3.48854232,192.08,192.05,51.56703477]
[1761405610732,0.66,192.09,192.05,51.56703477]
[1761405610935,4.1485637,192.08,192.05,51.56703477]
[1761405611138,0.66,192.08,192.05,51.56703477]
[1761405611367,0.66,192.07,192.05,53.53103652]
[1761405611747,5.86593794,192.09,192.05,53.53103652]
[1761405612064,4.14782614,192.08,192.05,53.53103652]
[1761405612239,0.66,192.08,192.05,53.53103652]
[1761405614563,0.66,192.08,192.05,51.56703477]
[1761405614867,0.66,192.08,192.05,53.53103652]
[1761405617078,5.86625026,192.08,192.05,51.56703477]
[1761405617279,5.86625026,192.08,192.05,35.94]
[1761405617446,2.62400175,192.07,192.02,5.20604524]
[1761405617754,2.62400175,192.07,192.03,35.94]
[1761405618068,0.66,192.06,192.04,35.94]
[1761405618454,5.86678694,192.06,192.04,35.94]
[1761405618883,0.66,192.05,192.04,35.94]
[1761405622578,5.86697734,192.05,192.04,35.94]
[1761405623072,18.88176106,192.05,192.04,35.94]
[1761405624953,18.88176106,192.05,192.02,35.94]
[1761405625153,5.92729106,192.04,192.02,35.94]
[1761405625681,0.72,192.03,192.02,35.94]
[1761405627759,7.8915214,192.03,191.97,9.19328258]
[1761405627954,1.96400175,192.01,191.98,35.94]
[1761405628377,0.72,192.0,191.98,35.94]
[1761405629163,5.9285762,192.0,191.98,35.94]
[1761405629574,0.72,191.99,191.98,35.94]
[1761405637980,5.92860461,191.99,191.98,35.94]
[1761405642776,0.72,191.99,191.98,35.94]
[1761405644168,5.92834449,192.0,191.98,35.94]
[1761405644384,5.20834449,192.0,191.98,35.94]
[1761405644590,0.72,191.99,191.98,35.94]
[1761405644794,5.92868625,191.99,191.97,9.19328258]
[1761405645094,5.92868625,191.99,191.98,35.96]
[1761405646304,5.20839646,192.0,191.98,35.96]
[1761405646596,5.92839646,192.0,191.98,35.96]
[1761405646785,0.72,191.99,191.98,35.96]
[1761405650299,0.69,191.99,191.98,35.96]
[1761405650602,5.20839646,192.0,191.98,35.96]
[1761405650797,5.89839646,192.0,191.98,35.96]
[1761405651197,5.20839646,192.0,191.98,35.96]
[1761405651395,5.89839646,192.0,191.98,35.96]
[1761405654186,0.69,191.99,191.98,35.96]
[1761405655402,5.20839646,192.0,191.98,35.96]
[1761405655598,5.89839646,192.0,191.98,35.96]
[1761405659683,5.20839646,192.0,191.98,35.96]
[1761405660108,5.92839646,192.0,191.98,35.96]
[1761405664912,0.72,191.99,191.98,35.96]
[1761405665909,5.92860461,191.99,191.98,35.96]
[1761405666314,5.92883094,191.99,191.97,9.19328258]
[1761405666496,0.72,191.98,191.97,9.19328258]
[1761405668012,5.92887592,191.98,191.97,9.19328258]
[1761405669915,5.20887592,191.98,191.97,9.19328258]
[1761405671107,5.92887592,191.98,191.97,9.19328258]
[1761405673899,5.92860461,191.99,191.97,9.19328258]
[1761405674623,0.72,191.98,191.97,9.19328258]
[1761405677113,5.92887592,191.98,191.97,9.19328258]
[1761405677829,5.92887592,191.98,191.91,5.21074407]
[1761405677830,7.18688597,191.98,191.91,5.21074407]
[1761405678008,1.25801005,191.96,191.92,35.96]
[1761405678423,0.72,191.95,191.92,35.96]
[1761405680725,5.9297538,191.95,191.92,35.96]
[1761405681213,0.66,191.94,191.92,35.96]
[1761405682417,5.20947751,191.96,191.92,35.96]
[1761405682619,0.66,191.95,191.92,35.96]
[1761405683423,0.66,191.95,191.93,35.96]
[1761405688336,5.20891323,191.98,191.93,41.17021373]
[1761405688637,0.66,191.96,191.93,42.42822378]
[1761405689814,0.66,191.96,191.93,41.17021373]
[1761405692737,0.66,191.96,191.93,42.42822378]
[1761405695042,0.66,191.96,191.94,1.25801005]
[1761405695340,0.66,191.96,191.95,35.96]
[1761405697623,0.66,191.98,191.95,42.42757143]
[1761405697824,0.66,192.01,191.96,1.25801005]
[1761405698020,0.66,192.0,191.97,35.96]
[1761405698843,5.8684806,192.0,191.97,35.96]
[1761405699042,0.66,192.0,191.97,35.96]
[1761405699433,0.66,192.0,191.98,1.25801005]
[1761405699641,23.54,192.02,191.99,37.21801005]
[1761405699948,0.66,192.01,192.0,35.96]
[1761405701736,0.66,192.01,191.94,5.20979593]
[1761405701737,5.86823771,192.01,191.94,5.20979593]
[1761405701941,1.25801005,191.99,191.95,35.96]
[1761405702241,1.25801005,191.98,191.95,35.96]
[1761405702634,0.66,191.97,191.95,35.96]
[1761405705232,5.86883389,191.99,191.95,35.96]
[1761405705435,5.20883389,191.99,191.95,37.21801005]
[1761405705636,0.66,191.98,191.95,37.21801005]
[1761405706044,27.29832045,192.01,191.97,1.25801005]
[1761405706045,0.66,192.01,191.97,1.25801005]
[1761405706233,0.66,192.01,191.98,35.96]
[1761405706437,0.66,192.0,191.98,35.96]
[1761405707950,22.88,192.02,191.98,35.96]
[1761405708134,0.66,192.01,191.98,35.96]
[1761405708956,5.86809615,192.01,191.98,35.96]
[1761405709433,0.66,192.0,191.98,35.96]
[1761405716360,5.86834678,192.0,191.98,35.96]
[1761405727778,5.86834678,192.0,191.98,51.59354959]
[1761405731979,5.86834678,192.0,191.98,35.96]
[1761405734376,5.20806208,192.01,191.98,37.92482311]
[1761405734578,0.66,192.02,191.99,17.59755805]
[1761405734772,0.66,192.02,192.0,35.94]
[1761405735169,2.62482311,192.02,192.0,35.94]
[1761405735366,1.96482311,192.01,192.0,35.94]
[1761405735676,2.62482311,192.01,192.0,35.94]
[1761405736573,7.83288519,192.01,192.0,35.94]
[1761405740380,7.83288519,192.01,191.93,8.31310353]
[1761405740381,22.88,191.98,191.93,8.31310353]
[1761405740555,0.72,191.97,191.94,35.94]
[1761405740756,18.22821728,192.01,191.94,35.94]
[1761405740757,0.72,191.99,191.95,1.96482311]
[1761405740979,0.72,192.01,191.97,1.96482311]
[1761405741155,0.72,192.01,191.98,35.94]
[1761405742290,5.2078412,192.02,191.98,37.90482311]
[1761405742470,0.72,192.03,191.99,0.34]
[1761405742663,3.49070115,192.02,191.99,0.34]
[1761405742865,0.72,192.03,191.99,0.34]
[1761405743079,3.4905861,192.02,191.98,48.6615171]
[1761405743278,0.72,192.03,191.98,48.6615171]
[1761405743479,3.49056677,192.02,191.98,48.6615171]
[1761405743678,0.72,192.03,191.98,48.6615171]
[1761405743874,3.49050687,192.02,191.98,48.6615171]
[1761405744065,0.72,192.03,191.98,48.6615171]
[1761405744260,3.49050634,192.02,191.98,48.6615171]
[1761405744456,0.72,192.03,191.98,48.6615171]
[1761405744687,3.49038178,192.02,191.98,48.6615171]
[1761405744879,0.72,192.03,191.98,48.6615171]
[1761405745076,3.49037702,192.02,191.98,48.3215171]
[1761405745261,5.92765455,192.03,191.98,41.1478412]
[1761405745462,6.17476308,192.02,191.98,41.1478412]
[1761405745676,2.68482311,192.02,191.98,41.1478412]
[1761405745876,5.20765455,192.03,191.98,35.94]
[1761405745877,2.68482311,192.01,191.98,35.94]
[1761405746359,0.72,192.0,191.98,35.94]
[1761405748884,0.72,192.0,191.97,15.63354959]
[1761405749088,0.72,192.0,191.98,35.96]
[1761405749993,0.72,192.0,191.97,15.63354959]
[1761405750177,0.72,192.0,191.98,35.96]
[1761405750488,0.72,192.0,191.99,35.96]
[1761405752802,7.89315644,192.0,191.97,5.20817002]
[1761405753096,1.96482311,191.98,191.96,35.96]
[1761405753589,0.72,191.97,191.96,35.96]
[1761405758508,0.72,191.97,191.94,5.20833333]
[1761405758692,0.72,191.97,191.95,35.96]
[1761405758693,2.68482311,191.97,191.95,35.96]
[1761405759213,0.72,191.96,191.95,35.96]
[1761405759588,7.17381537,191.98,191.95,35.96]
[1761405759904,0.72,191.97,191.95,35.96]
[1761405760089,7.17345719,191.99,191.95,35.96]
[1761405760291,0.72,191.98,191.95,35.96]
[1761405760813,1.96482311,192.0,191.95,41.16968778]
[1761405761118,0.72,191.99,191.95,41.16968778]
[1761405761317,0.72,191.99,191.95,35.96]
[1761405761997,5.92866343,191.99,191.95,35.96]
[1761405762193,0.72,191.98,191.95,35.96]
[1761405767617,2.68482311,191.98,191.95,35.96]
[1761405767998,0.72,191.98,191.95,35.96]
[1761405768298,0.72,191.97,191.95,35.96]
[1761405773136,13.02018525,192.01,191.95,36.3]
[1761405773312,0.68,192.0,191.95,36.3]
[1761405774107,0.68,192.0,191.95,35.96]
[1761405774352,22.88,191.98,191.95,35.96]
[1761405774814,23.56,191.98,191.95,35.96]
[1761405775912,28.76896267,191.98,191.95,35.96]
[1761405776520,28.08896267,191.98,191.95,35.96]
[1761405776712,0.68,191.97,191.95,35.96]
[1761405790541,0.71,191.98,191.95,35.96]
[1761405790836,0.71,191.97,191.95,35.96]
[1761405792141,5.91915308,191.97,191.95,35.96]
[1761405792335,0.71,191.96,191.95,35.96]
[1761405792842,5.20915308,191.97,191.95,35.96]
[1761405793021,0.71,191.96,191.95,35.96]
[1761405793939,18.22916666,192.0,191.95,35.96]
[1761405794145,0.71,191.97,191.95,35.96]
[1761405797640,0.71,192.07,191.96,34.09647521]
[1761405797828,3.48787793,192.06,192.0,10.87647521]
[1761405798035,3.48787793,192.05,192.01,36.0]
[1761405798235,4.35745516,192.08,192.01,36.34]
[1761405798236,3.48787793,192.04,192.01,36.34]
[1761405798438,4.35745516,192.09,192.02,0.34]
[1761405798637,3.48602807,192.08,192.03,36.0]
[1761405798952,3.48602807,192.07,192.04,0.34]
[1761405799155,3.48602807,192.06,192.03,36.34]
[1761405799453,3.48602807,192.05,192.04,5.91586005]
[1761405801823,4.15602807,192.05,192.03,36.0]
[1761405802037,3.48602807,192.04,192.03,49.01344695]
[1761405803333,0.2,192.12,192.07,22.88]
[1761405803542,0.2,192.16,192.15,10.87647521]
[1761405803848,3.68365289,192.16,192.15,36.1]
[1761405804029,3.68365289,192.16,192.15,40.69745516]
[1761405804630,0.2,192.16,192.15,40.69745516]
[1761405807753,0.2,192.16,192.15,45.90172265]
[1761405809438,0.2,192.16,192.15,40.69745516]
[1761405809645,0.87,192.16,192.15,36.14]
[1761405809844,0.87,192.16,192.14,2.08273671]
[1761405810834,0.87,192.16,192.13,36.12]
[1761405811038,0.87,192.16,192.13,41.52346108]
[1761405811958,0.67,192.15,192.13,41.52346108]
[1761405812253,0.67,192.15,192.13,36.12]
[1761405813441,0.67,192.15,192.12,7.28802869]
[1761405822449,0.67,192.15,192.12,5.20507507]
[1761405823170,0.17,192.15,192.12,5.20507507]
[1761405841385,0.07,192.17,192.12,5.20507507]
[1761405841775,0.07,192.17,192.12,5.87507507]
[1761405842193,0.07,192.17,192.13,0.67]
[1761405842383,0.07,192.17,192.12,5.20507507]
[1761405842768,0.07,192.17,192.11,41.99521384]
[1761405843470,0.67,192.16,192.11,41.99521384]
[1761405846083,0.17,192.16,192.11,41.99521384]
[1761405846392,3.54665511,192.17,192.13,5.20480924]
[1761405847387,3.47665511,192.16,192.13,5.20480924]
[1761405848078,4.14665511,192.16,192.13,0.7]
[1761405848280,3.47665511,192.15,192.13,0.7]
[1761405848880,3.47665511,192.15,192.12,5.90508015]
[1761405849408,4.14665511,192.15,192.12,5.90508015]
[1761405849591,0.67,192.15,192.12,5.90508015]
[1761405849884,4.14665511,192.15,192.12,5.90508015]
[1761405850087,0.67,192.15,192.12,5.90508015]
[1761405850284,4.14665511,192.15,192.12,5.90508015]
[1761405850466,0.67,192.15,192.12,5.90508015]
[1761405850667,4.14665511,192.15,192.12,5.90508015]
[1761405850870,0.67,192.15,192.12,5.90508015]
[1761405851097,4.15629213,192.15,192.12,5.90508015]
[1761405851297,0.67,192.15,192.12,5.90508015]
[1761405851472,4.15629213,192.15,192.12,5.90508015]
[1761405851772,0.67,192.15,192.12,5.90508015]
[1761405851973,4.15629213,192.15,192.12,5.90508015]
[1761405852273,0.67,192.15,192.12,5.90508015]
[1761405852494,4.15629213,192.15,192.12,5.90508015]
[1761405852688,0.67,192.15,192.12,5.90508015]
[1761405852994,4.15629213,192.15,192.12,5.90508015]
[1761405853181,0.67,192.15,192.12,5.90508015]
[1761405853383,4.15629213,192.15,192.12,5.90508015]
[1761405853592,0.67,192.15,192.12,5.90508015]
[1761405853895,4.15629213,192.15,192.12,5.90508015]
[1761405854191,3.48629213,192.14,192.12,5.90508015]
[1761405860097,0.67,192.15,192.12,5.90508015]
[1761405860286,4.15629213,192.15,192.12,5.90508015]
[1761405860476,0.67,192.15,192.12,5.90508015]
[1761405860794,4.15629213,192.15,192.12,5.90508015]
[1761405861096,0.67,192.15,192.12,5.90508015]
[1761405861394,4.15629213,192.15,192.12,5.90508015]
[1761405861596,0.67,192.15,192.12,5.90508015]
[1761405861793,4.15629213,192.15,192.12,5.90508015]
[1761405861999,0.67,192.15,192.12,5.90508015]
[1761405862299,4.15629213,192.15,192.12,5.90508015]
[1761405862492,0.67,192.15,192.12,5.90508015]
[1761405862684,4.15629213,192.15,192.12,5.90508015]
[1761405862885,3.48629213,192.16,192.13,0.7]
[1761405863088,3.48629213,192.15,192.13,0.7]
[1761405863285,3.48629213,192.16,192.13,0.7]
[1761405863484,3.48629213,192.15,192.13,0.7]
[1761405863699,4.20629213,192.16,192.13,0.7]